bitfinex/quotes_ETHUSD_20250813
["timestamp","ask_amount","ask_price","bid_price","bid_amount"]
[1755050783429,0.002,4572.3,4572.2,41.18523092]
[1755050783629,0.002,4572.3,4572.2,11.18523092]
[1755050783998,0.8157,4573.7,4572.2,38.6876]
[1755050784201,0.4364,4573.6,4572.8,2.18680609]
[1755050784387,0.4364,4573.6,4573.2,0.1096]
[1755050784580,0.4364,4573.6,4573.3,6.273188]
[1755050784826,0.8157,4573.5,4573.4,23.023996]
[1755050784978,0.8157,4573.5,4573.4,19.189602]
[1755050785179,1.2521,4573.5,4573.4,19.189602]
[1755050785621,1.2521,4573.5,4573.4,19.30060326]
[1755050785917,1.2521,4573.5,4573.4,30.11100126]
[1755050786885,0.8157,4573.5,4573.4,32.2975583]
[1755050787284,1.2521,4573.5,4573.4,30.11100126]
[1755050787811,1.2521,4573.5,4573.4,0.11100126]
[1755050788015,1.2521,4573.5,4573.4,30.11100126]
[1755050788319,1.2521,4573.5,4573.4,11.116408]
[1755050788533,1.2521,4573.5,4573.4,7.025949]
[1755050788823,1.2521,4573.5,4573.4,3.335]
[1755050789030,1.2521,4573.5,4573.4,33.335]
[1755050789396,1.2521,4573.5,4573.4,26.321879]
[1755050789590,1.2521,4573.5,4573.4,10.114232]
[1755050789786,1.2521,4573.5,4573.4,8.311104]
[1755050790030,1.2521,4573.5,4573.4,11.534625]
[1755050790190,1.2521,4573.5,4573.4,11.65423]
[1755050790391,1.2521,4573.5,4573.4,11.631911]
[1755050790591,1.2521,4573.5,4573.4,11.723741]
[1755050790837,1.2521,4573.5,4573.4,11.589316]
[1755050791135,1.2521,4573.5,4573.4,10.469625]
[1755050791429,1.2521,4573.5,4573.4,11.456996]
[1755050791629,1.2521,4573.5,4573.4,11.415996]
[1755050791831,1.2521,4573.5,4573.4,8.931331]
[1755050792164,1.2521,4573.5,4573.4,7.390142]
[1755050792846,1.2521,4573.5,4573.4,3.335]
[1755050793051,1.37731,4573.5,4573.4,3.335]
[1755050793344,2.03691,4573.5,4573.4,3.335]
[1755050793655,1.48691,4573.5,4573.4,10.860196]
[1755050793950,1.48691,4573.5,4573.4,17.1166]
[1755050793951,1.3617,4573.5,4573.4,17.1166]
[1755050794092,1.3617,4573.5,4573.4,22.445528]
[1755050794290,1.3617,4573.5,4573.4,13.503892]
[1755050794494,1.3617,4573.5,4573.4,10.177025]
[1755050794698,0.9253,4573.5,4573.4,10.177025]
[1755050794897,0.9253,4573.5,4573.4,25.090215]
[1755050795215,1.3652,4573.5,4573.4,23.461914]
[1755050796148,1.3652,4573.5,4573.4,3.335]
[1755050796295,1.3652,4573.5,4573.4,16.696158]
[1755050796630,1.3652,4573.5,4573.4,6.567915]
[1755050797141,1.50172,4573.5,4573.4,3.337]
[1755050798206,2.05172,4573.5,4573.4,3.337]
[1755050798439,0.55,4573.4,4572.3,0.11007315]
[1755050798608,0.1096,4572.4,4572.3,4.640871]
[1755050798945,1.3804,4572.4,4572.3,3.338]
[1755050799144,1.51844,4572.4,4572.3,8.58]
[1755050800309,1.3804,4572.4,4572.3,8.58]
[1755050802134,1.9304,4572.4,4572.3,5.241]
[1755050802302,1.9304,4572.4,4572.3,8.579]
[1755050802511,2.73708414,4572.3,4571.8,5.242]
[1755050802707,1.3804,4572.4,4571.8,5.242]
[1755050802708,0.55,4572.1,4571.8,5.242]
[1755050802908,0.6596,4571.9,4571.8,5.242]
[1755050803120,1.9304,4571.9,4571.8,5.242]
[1755050803725,1.9304,4571.9,4571.8,8.582]
[1755050807259,0.9405,4571.9,4571.8,19.412505]
[1755050807413,0.1096,4571.9,4571.8,20.742533]
[1755050807621,1.3804,4571.9,4571.8,8.582]
[1755050809304,2.06844,4571.9,4571.8,8.582]
[1755050812162,1.9304,4571.9,4571.8,8.582]
[1755050812318,1.4905,4571.9,4571.8,8.582]
[1755050812657,1.3804,4571.9,4571.8,8.582]
[1755050812957,1.9304,4571.9,4571.8,5.242]
[1755050813250,1.9304,4571.9,4571.8,5.243]
[1755050813411,2.12344,4571.9,4571.8,5.243]
[1755050814438,2.12344,4571.9,4571.8,8.583]
[1755050815004,2.12344,4571.9,4571.8,3.341]
[1755050818333,4.00821797,4571.6,4571.5,5.244]
[1755050818526,4.67927039,4571.6,4571.5,5.244]
[1755050818734,4.78887039,4571.6,4571.5,5.244]
[1755050819142,2.60145242,4571.6,4571.5,5.244]
[1755050819328,2.60145242,4571.6,4571.5,8.584]
[1755050819512,4.78887039,4571.6,4571.5,8.584]
[1755050819712,4.11781797,4571.6,4571.5,8.584]
[1755050820516,1.9304,4571.6,4571.5,8.584]
[1755050821126,4.11781797,4571.6,4571.5,8.584]
[1755050821720,1.9304,4571.6,4571.0,5.244]
[1755050821921,0.6596,4571.1,4571.0,5.244]
[1755050822345,1.8889,4571.1,4571.0,5.244]
[1755050823149,4.07655723,4571.1,4571.0,8.583]
[1755050823387,1.8889,4571.1,4571.0,8.583]
[1755050823825,4.07655723,4571.1,4571.0,8.583]
[1755050824009,4.48421295,4571.1,4571.0,8.583]
[1755050825521,2.29655572,4571.1,4571.0,8.583]
[1755050825927,1.8889,4571.1,4571.0,8.583]
[1755050827839,4.07655723,4571.1,4571.0,8.583]
[1755050828055,1.8889,4571.1,4571.0,8.583]
[1755050829853,4.07655723,4571.1,4571.0,8.583]
[1755050830537,4.07655723,4571.1,4571.0,8.584]
[1755050830741,4.48421295,4571.1,4571.0,8.584]
[1755050830965,2.29655572,4571.1,4571.0,8.584]
[1755050831168,0.6596,4571.1,4571.0,8.584]
[1755050832141,0.1096,4571.1,4571.0,8.8945]
[1755050833554,0.1096,4571.1,4571.0,8.584]
[1755050835003,0.1096,4571.1,4571.0,8.8945]
[1755050835294,0.1096,4571.1,4571.0,8.584]
[1755050835648,0.1096,4571.1,4571.0,8.581]
[1755050835649,0.6596,4571.1,4571.0,8.581]
[1755050835853,1.99926,4571.1,4571.0,8.581]
[1755050836181,1.8889,4571.1,4571.0,8.581]
[1755050836480,0.55,4571.0,4570.8,0.001]
[1755050836673,0.55,4570.9,4570.8,0.001]
[1755050836869,0.73889,4570.9,4570.8,0.001]
[1755050837059,1.96819,4570.9,4570.8,0.001]
[1755050837575,1.96819,4570.9,4570.5,0.001]
[1755050837765,0.55,4570.7,4570.6,3.337]
[1755050837961,0.6596,4570.6,4570.5,0.001]
[1755050838287,1.01823371,4570.6,4570.5,0.001]
[1755050838462,0.6596,4570.6,4570.5,0.001]
[1755050838644,1.8889,4570.6,4570.5,0.001]
[1755050838847,0.55,4570.5,4570.0,0.001]
[1755050839070,0.55,4570.3,4570.0,0.001]
[1755050839399,0.72793,4570.2,4570.1,3.337]
[1755050839548,1.95723,4570.2,4570.1,3.337]
[1755050839748,2.06683,4570.2,4570.1,3.337]
[1755050840181,0.6596,4570.2,4570.1,3.337]
[1755050841187,0.55,4570.1,4570.0,0.001]
[1755050841482,0.994,4570.1,4569.6,0.001]
[1755050841685,0.1096,4569.7,4569.6,0.001]
[1755050841988,0.6596,4569.7,4569.6,0.001]
[1755050842146,2.07779,4569.7,4569.6,0.001]
[1755050842348,1.8889,4569.7,4569.6,0.001]
[1755050842584,1.8889,4569.7,4569.6,3.339]
[1755050843149,0.55,4569.6,4569.1,5.246]
[1755050843362,0.6596,4569.2,4569.1,5.246]
[1755050843569,1.8889,4569.2,4569.1,5.246]
[1755050844363,0.6596,4569.2,4569.1,5.246]
[1755050844859,0.6596,4569.2,4569.1,8.583]
[1755050846194,0.1096,4569.2,4569.1,8.583]
[1755050847497,0.6596,4569.2,4569.1,8.583]
[1755050847699,1.8889,4569.2,4569.1,8.583]
[1755050847883,2.07779,4569.2,4569.1,8.583]
[1755050848079,1.63379,4569.2,4569.1,8.583]
[1755050848604,2.07779,4569.2,4569.1,8.583]
[1755050850670,2.06189,4569.2,4569.1,8.583]
[1755050851578,0.84849,4569.2,4569.1,8.583]
[1755050851769,0.6596,4569.2,4569.1,8.583]
[1755050853677,1.9017,4569.2,4569.1,8.583]
[1755050854321,0.6596,4569.2,4569.1,8.583]
[1755050856335,1.4736,4569.2,4569.1,8.583]
[1755050857284,1.9017,4569.2,4569.1,8.583]
[1755050857530,0.84977,4569.2,4569.1,8.583]
[1755050857682,0.6596,4569.2,4569.1,8.583]
[1755050858622,1.4736,4569.2,4569.1,8.583]
[1755050859513,0.6596,4569.2,4569.1,8.583]
[1755050860720,0.1096,4569.2,4569.1,8.8935]
[1755050861686,0.1096,4569.2,4569.1,8.583]
[1755050862254,0.1096,4569.2,4569.1,8.8935]
[1755050862380,0.55,4570.1,4569.1,8.8935]
[1755050862584,0.1096,4569.4,4569.1,8.8935]
[1755050862833,0.1096,4569.4,4569.1,8.583]
[1755050862986,0.814,4569.3,4569.1,8.583]
[1755050863382,0.1096,4569.4,4569.1,8.583]
[1755050864726,0.1096,4569.4,4569.2,0.3105]
[1755050864891,0.1096,4569.4,4569.3,3.337]
[1755050866415,0.1096,4569.8,4569.3,3.6475]
[1755050866633,0.814,4570.8,4569.4,15.119718]
[1755050866933,0.1096,4570.1,4569.5,3.6475]
[1755050867223,0.1096,4570.1,4569.8,2.18826067]
[1755050867528,0.1096,4570.5,4569.9,35.52522024]
[1755050867690,0.00307831,4571.3,4570.0,28.210545]
[1755050867893,0.1096,4571.1,4570.4,0.1096]
[1755050868188,0.00307831,4571.3,4570.5,30.921401]
[1755050868388,0.00307831,4571.3,4570.8,2.29740082]
[1755050868592,0.00307831,4571.3,4570.8,35.63440082]
[1755050868798,0.00307831,4571.3,4570.8,36.21731884]
[1755050869033,0.00307831,4571.3,4570.8,36.47605372]
[1755050869431,0.00307831,4571.3,4570.8,6.47605372]
[1755050869640,0.00307831,4571.3,4570.8,0.1096]
[1755050869935,0.00307831,4571.3,4570.8,13.442312]
[1755050870237,0.00307831,4571.3,4570.8,15.63011282]
[1755050870602,0.00307831,4571.3,4570.8,5.94490082]
[1755050870944,0.00307831,4571.3,4570.8,3.7571]
[1755050871090,0.00307831,4571.3,4570.8,3.4466]
[1755050871294,0.00307831,4571.3,4570.8,13.939452]
[1755050871494,0.00307831,4571.3,4570.8,14.990466]
[1755050871733,0.00307831,4571.3,4570.8,15.300966]
[1755050872032,0.00307831,4571.3,4570.8,17.48876682]
[1755050872240,0.00307831,4571.3,4570.8,15.300966]
[1755050872607,0.00307831,4571.3,4570.8,33.7571]
[1755050872814,0.00307831,4571.3,4570.8,35.94490082]
[1755050881442,0.00307831,4571.3,4570.8,35.63440082]
[1755050882073,0.00307831,4571.3,4570.8,35.94490082]
[1755050882566,0.00307831,4571.3,4570.8,35.63440082]
[1755050882984,0.00307831,4571.3,4570.8,34.64127282]
[1755050883862,0.00307831,4571.3,4570.8,35.63440082]
[1755050884970,0.00307831,4571.3,4570.8,5.63440082]
[1755050885330,0.00307831,4571.3,4570.8,35.63440082]
[1755050886566,0.00307831,4571.3,4570.8,30.038668]
[1755050886740,0.00307831,4571.3,4570.8,32.22646882]
[1755050887245,0.00307831,4571.3,4570.8,35.63440082]
[1755050888068,0.00307831,4571.3,4570.8,35.94490082]
[1755050888241,0.00307831,4571.3,4570.8,35.63440082]
[1755050889177,0.00307831,4571.3,4570.8,5.63440082]
[1755050889339,0.00307831,4571.3,4570.8,35.63440082]
[1755050892842,0.00307831,4571.3,4570.8,40.87840082]
[1755050893238,0.00307831,4571.3,4570.8,10.87840082]
[1755050893729,0.00307831,4571.3,4570.8,40.87840082]
[1755050893881,0.73207831,4571.3,4570.8,40.87840082]
[1755050894080,0.731,4570.9,4570.8,25.310507]
[1755050894371,1.1961,4570.9,4570.8,12.226001]
[1755050894547,1.1961,4570.9,4570.8,14.999384]
[1755050895785,1.31571,4570.9,4570.8,5.244]
[1755050895986,1.86571,4570.9,4570.8,8.579]
[1755050896138,0.55,4570.8,4570.7,5.244]
[1755050896344,1.8537,4570.8,4570.7,5.244]
[1755050897380,1.8537,4570.8,4570.7,8.579]
[1755050897542,2.1168387,4570.8,4570.7,8.579]
[1755050902158,1.5668387,4570.8,4570.7,8.579]
[1755050902363,0.729,4570.8,4570.7,28.889521]
[1755050902572,1.1941,4570.8,4570.7,8.579]
[1755050902759,1.1941,4570.8,4570.7,12.897128]
[1755050903361,1.1941,4570.8,4570.7,8.579]
[1755050903565,1.3902777,4570.8,4570.7,8.579]
[1755050904666,1.3902777,4570.8,4570.7,10.920128]
[1755050904866,1.1941,4570.8,4570.7,8.579]
[1755050908801,0.002,4570.9,4570.7,8.579]
[1755050909204,0.002,4570.9,4570.7,10.76684291]
[1755050909409,0.002,4570.9,4570.8,30.36557282]
[1755050909626,0.002,4570.9,4570.8,32.18780082]
[1755050909774,0.002,4570.9,4570.8,32.49830082]
[1755050909977,0.002,4570.9,4570.8,32.77071884]
[1755050910210,0.002,4570.9,4570.8,32.88031884]
[1755050914180,0.002,4570.9,4570.8,33.13905372]
[1755050914181,1e-08,4570.9,4570.8,33.13905372]
[1755050914377,0.00307831,4571.3,4571.2,2.18760938]
[1755050914592,0.00307831,4571.3,4571.2,35.9046274]
[1755050914796,0.00307831,4571.3,4571.2,35.63220938]
[1755050915020,0.00307831,4571.3,4571.2,35.79626524]
[1755050915231,0.00307831,4571.3,4571.2,17.07212286]
[1755050915429,0.77357831,4571.3,4571.2,12.39460386]
[1755050915592,1.21937831,4571.3,4571.2,12.14669786]
[1755050915977,1.21937831,4571.3,4571.2,6.188049]
[1755050916318,1.21937831,4571.3,4571.2,8.194116]
[1755050916524,1.21937831,4571.3,4571.2,7.391182]
[1755050916698,1.21937831,4571.3,4571.2,3.4446]
[1755050916895,1.21937831,4571.3,4571.2,3.335]
[1755050917283,1.76937831,4571.3,4571.2,3.335]
[1755050917483,1.95747614,4571.3,4571.2,3.335]
[1755050920425,1.51167614,4571.3,4571.2,3.335]
[1755050920935,1.76937831,4571.3,4571.2,3.335]
[1755050925128,0.00307831,4571.3,4571.2,5.63220938]
[1755050925299,0.00307831,4571.3,4571.2,5.94270938]
[1755050925505,0.00307831,4571.3,4571.2,3.7551]
[1755050925727,0.00307831,4571.3,4571.2,35.94270938]
[1755050926024,0.00307831,4571.3,4571.2,25.06444238]
[1755050926330,0.00307831,4571.3,4571.2,12.270253]
[1755050926993,0.77357831,4571.3,4571.2,6.431384]
[1755050927202,1.76937831,4571.3,4570.7,5.244]
[1755050927421,1.3259,4571.2,4570.8,9.820953]
[1755050927741,1.2163,4571.1,4570.9,7.041887]
[1755050927906,0.29769783,4571.2,4571.0,8.292849]
[1755050928114,0.1096,4571.2,4571.1,3.334]
[1755050929142,1.3259,4571.2,4571.1,3.334]
[1755050933304,1.8759,4571.2,4571.1,3.334]
[1755050935730,4.06350938,4571.2,4571.1,3.334]
[1755050937511,1.8759,4571.2,4571.1,3.334]
[1755050937714,2.50150259,4571.2,4571.1,3.334]
[1755050938439,4.68911197,4571.2,4571.1,3.334]
[1755050939753,2.52060259,4571.2,4571.1,3.334]
[1755050940140,1.895,4571.2,4571.1,3.334]
[1755050940453,1.897,4571.2,4571.1,3.334]
[1755050940655,0.55,4571.1,4570.8,0.001]
[1755050941016,0.6596,4570.9,4570.8,0.001]
[1755050941213,1.895,4570.9,4570.8,0.001]
[1755050941418,2.0847,4570.9,4570.8,0.001]
[1755050941729,0.55,4570.8,4569.9,5.245]
[1755050942055,1.7854,4570.8,4570.0,3.335]
[1755050942263,1.2354,4570.7,4570.0,3.335]
[1755050942457,0.6596,4570.1,4570.0,3.335]
[1755050942845,1.895,4570.1,4570.0,3.335]
[1755050943160,2.0845,4570.1,4570.0,3.335]
[1755050944817,2.0845,4570.1,4569.9,5.245]
[1755050945017,0.8491,4570.1,4569.9,5.245]
[1755050945255,1.2354,4570.0,4569.9,5.245]
[1755050945460,0.55,4569.9,4569.1,0.001]
[1755050945616,0.1096,4569.7,4569.1,0.001]
[1755050945818,2.84792746,4569.7,4569.1,0.001]
[1755050946018,3.47508337,4569.7,4569.6,3.336]
[1755050946249,4.71048337,4569.7,4569.6,3.336]
[1755050946655,2.52215591,4569.7,4569.6,3.336]
[1755050946845,1.895,4569.7,4569.6,3.336]
[1755050947449,4.08332746,4569.7,4569.6,3.336]
[1755050947862,1.895,4569.7,4569.6,3.336]
[1755050948768,4.08332746,4569.7,4569.6,3.336]
[1755050949233,1.895,4569.7,4569.6,3.336]
[1755050949464,2.30332854,4569.7,4569.6,3.336]
[1755050949832,0.55,4569.6,4569.1,0.001]
[1755050950072,0.6596,4569.2,4569.1,0.001]
[1755050950423,1.895,4569.2,4569.1,0.001]
[1755050951255,1.895,4569.2,4569.1,3.336]
[1755050951455,1.895,4569.2,4568.8,0.001]
[1755050951456,0.55,4569.1,4568.8,0.001]
[1755050951761,0.6596,4568.9,4568.8,0.001]
[1755050952651,0.1096,4568.9,4568.8,0.001]
[1755050953052,1.429,4568.9,4568.8,3.336]
[1755050953454,0.6596,4568.9,4568.8,3.336]
[1755050953830,0.1096,4568.9,4568.8,3.336]
[1755050955080,0.879,4568.9,4568.8,3.336]
[1755050955834,1.5635,4568.9,4568.8,3.336]
[1755050956071,2.0295,4568.9,4568.8,3.336]
[1755050956280,0.55,4568.8,4567.9,0.1096]
[1755050956578,23.71244862,4568.7,4567.8,5.247]
[1755050956731,2.75655568,4568.7,4567.8,5.247]
[1755050956930,1.7854,4568.7,4567.8,5.247]
[1755050957136,1.3194,4568.7,4567.8,5.247]
[1755050957362,1.429,4568.7,4567.8,5.247]
[1755050957973,1.429,4568.7,4568.6,3.337]
[1755050958888,1.895,4568.7,4568.6,3.337]
[1755050959095,2.09795,4568.7,4568.6,3.337]
[1755050959784,1.63195,4568.7,4568.6,3.337]
[1755050960087,0.6596,4568.7,4568.6,3.337]
[1755050960285,0.1096,4568.7,4568.6,3.337]
[1755050960441,0.1096,4569.0,4568.6,3.337]
[1755050960799,0.1096,4569.0,4568.7,0.3105]
[1755050963303,0.00307831,4569.1,4569.0,11.323211]
[1755050963603,0.00307831,4569.1,4569.0,8.228038]
[1755050963762,0.00307831,4569.1,4569.0,3.7561]
[1755050963961,0.00307831,4569.1,4569.0,13.186683]
[1755050964296,0.00307831,4569.1,4569.0,3.336]
[1755050965411,0.88207831,4569.1,4569.0,3.336]
[1755050966362,0.11267831,4569.1,4569.0,3.336]
[1755050967168,0.00307831,4569.1,4569.0,3.336]
[1755050967378,0.00307831,4569.1,4569.0,13.302945]
[1755050967586,0.00307831,4569.1,4569.0,22.021164]
[1755050967785,0.00307831,4569.1,4569.0,33.7561]
[1755050968178,0.00307831,4569.1,4569.0,21.914571]
[1755050968800,0.00307831,4569.1,4569.0,33.7561]
[1755050969005,0.00307831,4569.1,4569.0,26.515542]
[1755050969207,0.00307831,4569.1,4569.0,26.826042]
[1755050969404,0.00307831,4569.1,4569.0,14.792]
[1755050969565,0.00307831,4569.1,4569.0,7.074411]
[1755050969766,0.00307831,4569.1,4569.0,6.704436]
[1755050969971,0.00307831,4569.1,4569.0,3.4456]
[1755050970797,0.00307831,4569.1,4569.0,12.918739]
[1755050970990,0.00307831,4569.1,4569.0,13.150739]
[1755050971781,0.00307831,4569.1,4569.0,23.060193]
[1755050971966,0.00307831,4569.1,4569.0,25.202383]
[1755050972866,0.00307831,4569.1,4569.0,39.0031]
[1755050973963,0.00307831,4569.1,4569.0,38.6926]
[1755050974204,0.00307831,4569.1,4569.0,26.798294]
[1755050974400,0.00307831,4569.1,4569.0,27.268456]
[1755050974608,0.00307831,4569.1,4569.0,32.209938]
[1755050974972,0.00307831,4569.1,4569.0,35.922035]
[1755050975172,0.00307831,4569.1,4569.0,35.550167]
[1755050975885,0.00307831,4569.1,4569.0,34.227714]
[1755050976085,0.00307831,4569.1,4569.0,38.6926]
[1755050976435,0.00307831,4569.1,4569.0,41.46418346]
[1755050976603,0.00307831,4569.1,4569.0,41.72291834]
[1755050979476,0.00039744,4569.1,4569.0,41.72291834]
[1755050979674,0.00039744,4569.1,4569.0,41.81036634]
[1755050981570,0.00039744,4569.1,4569.0,42.02906634]
[1755050983513,0.00039744,4569.1,4569.0,41.81036634]
[1755050984667,0.00039744,4569.1,4569.0,41.55163146]
[1755050986262,0.00039744,4569.1,4569.0,41.27921072]
[1755050987353,0.00239744,4569.1,4569.0,41.27921072]
[1755050990167,0.002,4569.1,4569.0,41.27821072]
[1755050990467,0.00025859,4569.1,4569.0,41.27821072]
[1755050990759,0.00025859,4569.1,4569.0,40.96771072]
[1755050991736,1.20605859,4569.1,4569.0,38.779048]
[1755050991939,1.20605859,4569.1,4569.0,40.88026272]
[1755050994663,0.75815859,4569.1,4569.0,40.88026272]
[1755050995178,1.20605859,4569.1,4569.0,40.88026272]
[1755051000038,1.20605859,4569.1,4569.0,38.6916]
[1755051001119,1.20605859,4569.1,4569.0,40.88026272]
[1755051001278,1.20605859,4569.1,4569.0,38.6916]
[1755051002081,1.20605859,4569.1,4569.0,40.88026272]
[1755051002290,1.20605859,4569.1,4569.0,38.6916]
[1755051002479,1.20605859,4569.1,4569.0,40.88026272]
[1755051003688,0.00025859,4569.1,4569.0,41.15268346]
[1755051003994,1.18655859,4569.1,4569.0,40.88026272]
[1755051004982,0.74625859,4569.1,4569.0,40.88026272]
[1755051008418,0.00025859,4569.1,4569.0,40.88026272]
[1755051008588,0.00025859,4569.1,4569.0,41.15268346]
[1755051008794,0.00025859,4569.1,4569.0,41.46318346]
[1755051009639,0.00025859,4569.1,4569.0,41.55063446]
[1755051010194,0.00025859,4569.1,4569.0,41.55163446]
[1755051010607,0.00025859,4569.1,4569.0,50.00936934]
[1755051011625,0.00025859,4569.1,4569.0,50.22806934]
[1755051012799,0.00025859,4569.1,4569.0,49.65883446]
[1755051014365,0.74625859,4569.1,4569.0,40.96871372]
[1755051014862,0.00025859,4569.1,4569.0,40.85911372]
[1755051015064,0.00025859,4569.1,4569.0,40.96871372]
[1755051019352,0.74625859,4569.1,4569.0,40.96871372]
[1755051019870,1.18655859,4569.1,4569.0,40.96871372]
[1755051020073,0.74625859,4569.1,4569.0,40.96871372]
[1755051021787,0.00025859,4569.1,4569.0,40.96871372]
[1755051023767,1.18655859,4569.1,4569.0,40.96871372]
[1755051026873,1.18655859,4569.1,4569.0,40.88126272]
[1755051027854,1.18655859,4569.1,4569.0,35.3576]
[1755051028196,1.18655859,4569.1,4569.0,38.6916]
[1755051030690,1.18655859,4569.1,4569.0,8.6916]
[1755051030858,1.30521445,4569.1,4569.0,8.6916]
[1755051031773,1.18655859,4569.1,4569.0,8.6916]
[1755051031978,1.18655859,4569.1,4569.0,10.88026272]
[1755051033211,1.18655859,4569.1,4569.0,8.6916]
[1755051033407,1.18655859,4569.1,4569.0,5.3576]
[1755051033582,1.18655859,4569.1,4569.0,8.6926]
[1755051034474,1.18655859,4569.1,4569.0,10.88126272]
[1755051035809,0.74625859,4569.1,4569.0,10.88126272]
[1755051036380,1.18655859,4569.1,4569.0,10.88126272]
[1755051036767,0.74625859,4569.1,4569.0,10.88126272]
[1755051037319,1.18655859,4569.1,4569.0,10.88126272]
[1755051038090,0.74625859,4569.1,4569.0,10.88126272]
[1755051038989,1.18655859,4569.1,4569.0,10.88126272]
[1755051040172,0.74625859,4569.1,4569.0,10.88126272]
[1755051040384,0.00025859,4569.1,4569.0,10.88126272]
[1755051041110,0.72345859,4569.1,4569.0,10.88126272]
[1755051041886,0.00025859,4569.1,4569.0,10.88126272]
[1755051042887,0.72345859,4569.1,4569.0,10.88126272]
[1755051044267,0.00025859,4569.1,4569.0,10.88126272]
[1755051046444,0.72345859,4569.1,4569.0,10.88126272]
[1755051048323,0.00025859,4569.1,4569.0,10.88126272]
[1755051048943,0.002,4569.6,4569.0,10.88126272]
[1755051048944,0.002,4569.6,4569.5,2.18842324]
[1755051049254,0.7252,4569.6,4569.5,3.4446]
[1755051049549,1.1655,4569.6,4569.5,3.4446]
[1755051054851,1.28205,4569.6,4569.5,3.4446]
[1755051055434,1.1655,4569.6,4569.5,3.4446]
[1755051056078,1.1655,4569.6,4569.5,8.6906]
[1755051060970,1.1655,4569.6,4569.5,8.581]
[1755051065300,1.7155,4569.6,4569.5,8.58]
[1755051065590,1.8251,4569.6,4569.5,8.58]
[1755051065898,2.00761,4569.6,4569.5,8.58]
[1755051066253,1.2751,4569.6,4569.5,8.58]
[1755051066482,1.1655,4569.6,4569.5,8.58]
[1755051067959,0.002,4569.6,4569.5,8.6896]
[1755051069274,0.6725,4569.6,4569.5,8.6896]
[1755051070175,1.1263,4569.6,4569.5,8.6896]
[1755051072289,0.6725,4569.6,4569.5,8.6896]
[1755051073102,1.1263,4569.6,4569.5,8.6896]
[1755051073304,1.23893,4569.6,4569.5,8.58]
[1755051073510,1.89853,4569.6,4569.5,8.58]
[1755051075246,1.89853,4569.6,4566.3,0.55]
[1755051075247,0.739853,4569.5,4566.3,0.55]
[1755051075403,0.55,4567.8,4566.1,0.01553201]
[1755051075605,0.55,4567.8,4565.1,0.10901501]
[1755051075830,0.55,4567.6,4566.2,0.4449]
[1755051076000,0.6705,4567.5,4566.3,3.378]
[1755051076203,1.1243,4567.5,4566.3,3.378]
[1755051076429,0.55,4567.3,4566.3,3.378]
[1755051076640,0.55,4567.1,4566.3,3.378]
[1755051077038,0.55,4566.9,4566.3,3.378]
[1755051077241,1.1243,4566.8,4566.3,3.378]
[1755051077405,0.6705,4566.7,4566.3,3.378]
[1755051078006,1.1243,4566.6,4566.3,3.378]
[1755051078240,1.1243,4566.5,4566.3,3.378]
[1755051078443,1.1243,4566.4,4566.3,3.378]
[1755051079238,0.6705,4566.4,4566.3,3.378]
[1755051079435,1.0038,4567.0,4566.3,3.378]
[1755051079622,0.55,4566.7,4566.3,3.378]
[1755051079826,0.6705,4566.6,4566.3,3.378]
[1755051080411,0.6705,4567.5,4566.3,3.378]
[1755051081025,1.0038,4567.4,4566.3,3.378]
[1755051081348,0.55,4567.2,4566.3,3.378]
[1755051081544,0.55,4567.0,4566.3,3.378]
[1755051081728,0.55,4566.8,4566.3,3.378]
[1755051082143,1.1243,4567.1,4566.3,3.378]
[1755051082347,0.6705,4567.1,4566.3,3.8229]
[1755051082844,0.55,4567.4,4566.3,3.8229]
[1755051083153,0.12205,4567.3,4566.3,3.8229]
[1755051083923,0.6705,4567.5,4566.3,3.8229]
[1755051084314,0.4538,4567.4,4566.3,3.378]
[1755051084519,0.6705,4567.3,4566.3,3.378]
[1755051085150,0.6705,4567.3,4566.4,0.4449]
[1755051085356,0.7801,4567.3,4566.6,0.1096]
[1755051087316,0.1096,4567.3,4566.7,0.4449]
[1755051087518,0.1096,4567.8,4566.7,0.4449]
[1755051087715,0.1096,4568.0,4567.2,0.1096]
[1755051087946,0.1096,4568.3,4567.7,0.1096]
[1755051088152,0.189853,4569.5,4568.0,0.1096]
[1755051088153,0.1096,4568.6,4568.0,0.1096]
[1755051088314,0.6705,4569.5,4568.1,3.8249]
[1755051088315,0.1096,4569.0,4568.1,3.8249]
[1755051088514,0.6705,4569.5,4568.5,0.1096]
[1755051088841,0.11263,4569.4,4568.8,0.1096]
[1755051089154,0.11263,4569.4,4568.9,3.8259]
[1755051089362,0.002,4569.6,4569.1,0.1096]
[1755051089861,0.002,4569.6,4569.1,0.5649]
[1755051090965,0.002,4569.6,4569.1,0.1096]
[1755051091263,0.6893,4569.6,4569.1,0.1096]
[1755051091428,0.6873,4569.5,4569.1,0.1096]
[1755051091841,0.1096,4569.3,4568.9,3.381]
[1755051092023,0.81418,4569.2,4568.9,3.381]
[1755051092247,1.2373,4569.1,4568.9,3.381]
[1755051092448,0.55,4568.9,4567.8,0.1096]
[1755051092624,0.1096,4568.5,4567.9,3.381]
[1755051093572,0.1096,4568.5,4568.0,0.4553]
[1755051093728,0.1096,4568.8,4568.2,0.1096]
[1755051094169,0.002,4569.6,4568.3,0.4553]
[1755051094375,0.1096,4569.3,4568.6,0.1096]
[1755051094527,0.1096,4569.3,4568.7,3.382]
[1755051094727,0.1096,4569.3,4568.7,6.02609727]